fUST/lending_fUST_20250719
["ID","MTS","AMOUNT","RATE_DAILY","PERIOD"]
[373093387,1752858668064,-12610.43989422,0.00022,7]
[373093389,1752858668074,-476.25663856,0.00022,7]
[373093391,1752858668083,-204.0,0.00022,2]
[373093393,1752858668092,-229.688738,0.00022029,2]
[373093395,1752858668102,-229.688738,0.00022061,9]
[373093397,1752858668112,-229.688738,0.0002207,10]
[373093399,1752858668121,-2849.60510466,0.00022141,6]
[373093401,1752858668131,-600.0,0.00022175,2]
[373093403,1752858668140,-204.0,0.00022192,7]
[373093405,1752858668150,-1937.58,0.00022208,2]
[373093407,1752858668159,-460.0,0.00022209,2]
[373093409,1752858668169,-711.11,0.00022209,2]
[373093411,1752858668178,-460.0,0.00022209,2]
[373093413,1752858668187,-925.97,0.00022209,2]
[373093415,1752858668196,-460.0,0.00022209,2]
[373093417,1752858668207,-604.8,0.00022209,2]
[373093419,1752858668217,-1112.11,0.00022209,2]
[373093421,1752858668226,-634.72,0.0002221,2]
[373093423,1752858668236,-605.39,0.0002221,2]
[373093425,1752858668245,-1644.5,0.0002221,2]
[373093427,1752858668254,-852.85,0.0002221,2]
[373093429,1752858668265,-2496.21,0.0002221,2]
[373093431,1752858668274,-2073.39,0.0002221,2]
[373093433,1752858668283,-5605.67,0.0002221,2]
[373093434,1752858668292,-1731.1,0.00022211,2]
[373093437,1752858668303,-484.83,0.00022211,2]
[373093439,1752858668312,-477.42,0.00022211,2]
[373093441,1752858668321,-681.11,0.00022211,2]
[373093443,1752858668330,-460.0,0.00022211,2]
[373093445,1752858668340,-4644.07,0.00022212,2]
[373093447,1752858668349,-1229.7,0.00022212,2]
[373093449,1752858668359,-736.0,0.00022213,2]
[373093451,1752858668368,-1122.5,0.00022214,2]
[373093453,1752858668377,-1890.89,0.00022214,2]
[373093455,1752858668387,-1359.29,0.00022214,2]
[373093457,1752858668396,-4623.0,0.00022214,2]
[373093459,1752858668405,-1513.01,0.00022214,2]
[373093461,1752858668418,-522.98,0.00022216,2]
[373093463,1752858668427,-525.98,0.00022216,2]
[373093465,1752858668436,-1021.92,0.00022216,2]
[373093467,1752858668445,-261.556054,0.00022219,7]
[373093469,1752858668456,-261.556054,0.00022219,7]
[373093471,1752858668465,-500.0,0.00022222,2]
[373093472,1752858668474,-229.688738,0.00022229,2]
[373093474,1752858668483,-229.688738,0.0002223,7]
[373093476,1752858668493,-229.688738,0.0002223,11]
[373093478,1752858668503,-229.688738,0.00022305,10]
[373093480,1752858668512,-159.6791774,0.00022328,2]
[373093482,1752858668525,-177.5756091,0.00022328,2]
[373093485,1752858668535,-153.0,0.00022328,2]
[373093486,1752858668544,-153.0,0.00022328,2]
[373093488,1752858668553,-153.0,0.00022328,2]
[373093490,1752858668563,-153.0,0.00022328,2]
[373093493,1752858668573,-356.1611332,0.00022328,2]
[373093495,1752858668583,-153.0,0.00022328,2]
[373093497,1752858668592,-319.5710108,0.00022328,2]
[373093499,1752858668601,-153.0,0.00022328,2]
[373093501,1752858668613,-178.0805666,0.00022328,2]
[373093503,1752858668622,-153.0,0.00022328,2]
[373093505,1752858668631,-760.0,0.00022388,2]
[373093507,1752858668640,-2849.60510466,0.00022417,7]
[373093509,1752858668650,-229.688738,0.00022429,2]
[373093511,1752858668659,-229.688738,0.0002245,9]
[373093513,1752858668668,-300.0,0.00022466,2]
[373093515,1752858668677,-250.0,0.00022466,2]
[373093517,1752858668686,-2669.07589003,0.00022471,2]
[373093519,1752858668695,-1937.58,0.00022482,2]
[373093521,1752858668705,-460.0,0.00022483,2]
[373093523,1752858668715,-711.11,0.00022483,2]
[373093525,1752858668724,-447.65121459,0.00022483,2]
[373093527,1752858668733,-925.97,0.00022483,2]
[373093529,1752858668742,-460.0,0.00022483,2]
[373093531,1752858668752,-604.8,0.00022483,2]
[373093533,1752858668761,-1112.11,0.00022483,2]
[373093535,1752858668773,-634.72,0.00022484,2]
[373093537,1752858668782,-605.39,0.00022484,2]
[373093539,1752858668791,-1644.5,0.00022484,2]
[373093541,1752858668801,-852.85,0.00022484,2]
[373093543,1752858668810,-2496.21,0.00022484,2]
[373093545,1752858668819,-2073.39,0.00022484,2]
[373093547,1752858668829,-5605.67,0.00022484,2]
[373093549,1752858668838,-1731.1,0.00022485,2]
[373093551,1752858668848,-484.83,0.00022485,2]
[373093553,1752858668857,-477.42,0.00022485,2]
[373093555,1752858668866,-681.11,0.00022485,2]
[373093557,1752858668876,-460.0,0.00022485,2]
[373093559,1752858668885,-152.588681,0.00022486,7]
[373093561,1752858668894,-152.588681,0.00022486,7]
[373093563,1752858668904,-4644.07,0.00022486,2]
[373093565,1752858668913,-1229.7,0.00022486,2]
[373093567,1752858668922,-736.0,0.00022487,2]
[373093569,1752858668931,-1122.5,0.00022488,2]
[373093571,1752858668940,-1890.89,0.00022488,2]
[373093573,1752858668950,-1359.29,0.00022488,2]
[373093575,1752858668959,-4623.0,0.00022488,2]
[373093577,1752858668968,-1513.01,0.00022488,2]
[373093579,1752858668977,-94014.52501877,0.0002249,7]
[373093582,1752858668995,-500.0,0.0002249,7]
[373093604,1752858669191,-460.0,0.00016456,2]
[373093606,1752858669202,-460.0,0.00016729,2]
[373093608,1752858669211,-460.0,0.0001673,2]
[373093610,1752858669220,-460.0,0.00017827,2]
[373093612,1752858669230,-460.0,0.00018101,2]
[373093614,1752858669239,-460.0,0.00018375,2]
[373093616,1752858669248,-460.0,0.00018649,2]
[373093618,1752858669258,-2400.36,0.00020567,2]
[373093620,1752858669269,-2400.36,0.00020841,2]
[373093622,1752858669278,-2400.36,0.00021115,2]
[373093624,1752858669287,-34695.53617507,0.0002249,7]
[373093636,1752858669398,-460.0,0.00016729,2]
[373093638,1752858669408,-148.037905,0.00016729,2]
[373093644,1752858669454,-311.962095,0.00016729,2]
[373093646,1752858669466,-460.0,0.00016729,2]
[373093648,1752858669476,-460.0,0.00017003,2]
[373093650,1752858669485,-460.0,0.00017003,2]
[373093652,1752858669496,-460.0,0.00017277,2]
[373093654,1752858669506,-151.0,0.00017278,2]
[373093656,1752858669515,-460.0,0.00017551,2]
[373093658,1752858669525,-151.0,0.00017553,2]
[373093660,1752858669534,-460.0,0.00017825,2]
[373093662,1752858669543,-460.0,0.00018923,2]
[373093664,1752858669553,-460.0,0.00019197,2]
[373093666,1752858669563,-460.0,0.00019471,2]
[373093668,1752858669573,-460.0,0.00019745,2]
[373093670,1752858669583,-2373.73365071,0.00021389,2]
[373093714,1752858670012,5000.0,0.000164,2]
[373093735,1752858670208,184.2245814,0.00016253,2]
[373094560,1752858678470,5000.0,0.000164,2]
[373095745,1752858693619,5000.0,0.000164,2]
[373096376,1752858709363,5000.0,0.000164,2]
[373096501,1752858725843,5000.0,0.000164,2]
[373096504,1752858743769,5000.0,0.000164,2]
[373096507,1752858759592,5000.0,0.000164,2]
[373096658,1752858775058,5000.0,0.000164,2]
[373096661,1752858791211,5000.0,0.000164,2]
[373096663,1752858806371,5000.0,0.000164,2]
[373096667,1752858822558,5000.0,0.000164,2]
[373096670,1752858838381,5000.0,0.000164,2]
[373096672,1752858853692,5000.0,0.000164,2]
[373096674,1752858871166,5000.0,0.000164,2]
[373096675,1752858889010,1914.93930875,0.000164,2]
[373096676,1752858905552,370.33956703,0.00016355,2]
[373096678,1752858969547,488.33549,0.00013699,2]
[373096679,1752858978174,200.0,0.00016728,10]
[373096680,1752858978505,200.0,0.00016728,10]
[373096681,1752859144695,-416.0,0.00016454,2]
[373096682,1752859144725,-300.0,0.00016454,2]
[373096683,1752859144753,-460.0,0.00016455,2]
[373096684,1752859144782,-460.0,0.00016455,2]
[373096685,1752859144810,-460.0,0.00016455,2]
[373096686,1752859144839,-460.0,0.00016455,2]
[373096687,1752859144867,-335.54640665,0.00016455,2]
[373096688,1752859144897,-460.0,0.00016455,2]
[373096689,1752859144926,-460.0,0.00016455,2]
[373096690,1752859144959,-460.0,0.00016455,2]
[373096691,1752859144987,-460.0,0.00016455,2]
[373096692,1752859145016,-36.9071867,0.00016455,2]
[373096693,1752859145161,-463.0928133,0.00016455,2]
[373096694,1752859145192,-460.0,0.00016455,2]
[373096695,1752859145220,-460.0,0.00016455,2]
[373096696,1752859145248,-460.0,0.00016455,2]
[373096697,1752859145274,-460.0,0.00016455,2]
[373096698,1752859145301,-460.0,0.00016455,2]
[373096699,1752859145327,-462.99488661,0.00016455,2]
[373096700,1752859145353,-508.2,0.00016455,2]
[373096701,1752859145381,-460.0,0.00016455,2]
[373096702,1752859145409,-460.0,0.00016455,2]
[373096703,1752859145438,-231.42460018,0.00016455,2]
[373096704,1752859145573,-228.57539982,0.00016455,2]
[373096705,1752859145603,-460.0,0.00016455,2]
[373096706,1752859145755,-460.0,0.00016455,2]
[373096707,1752859145784,-460.0,0.00016455,2]
[373096708,1752859145812,-460.0,0.00016455,2]
[373096709,1752859145840,-1006.14049359,0.00016455,2]
[373096710,1752859145869,-460.0,0.00016455,2]
[373096711,1752859145898,-460.0,0.00016455,2]
[373096712,1752859145927,-460.0,0.00016455,2]
[373096713,1752859145957,-460.0,0.00016455,2]
[373096714,1752859146082,-460.0,0.00016455,2]
[373096715,1752859146112,-460.0,0.00016455,2]
[373096716,1752859146141,-460.0,0.00016455,2]
[373096717,1752859146173,-460.0,0.00016455,2]
[373096718,1752859146203,-460.0,0.00016455,2]
[373096719,1752859146232,-460.0,0.00016455,2]
[373096720,1752859146261,-461.49756378,0.00016455,2]
[373096721,1752859146290,-460.0,0.00016455,2]
[373096722,1752859146320,-576.21582551,0.00016455,2]
[373096723,1752859146349,-460.0,0.00016455,2]
[373096724,1752859146378,-78.28011519,0.00016455,2]
[373096725,1752859146638,-408.01299104,0.00016455,2]
[373096726,1752859146668,-463.17078575,0.00016455,2]
[373096727,1752859146698,-458.59210166,0.00016455,2]
[373096728,1752859146728,-460.0,0.00016455,2]
[373096729,1752859146758,-460.0,0.00016455,2]
[373096730,1752859146788,-460.0,0.00016455,2]
[373096731,1752859146831,-460.0,0.00016456,2]
[373096732,1752859146873,-460.0,0.00016456,2]
[373096733,1752859146910,-460.0,0.00016456,2]
[373096734,1752859146947,-216.64508203,0.00016456,2]
[373096735,1752859146985,-460.0,0.00016456,2]
[373096736,1752859147024,-7.15807904,0.00016456,2]
[373096737,1752859147153,-452.84192096,0.00016456,2]
[373096738,1752859147187,-460.0,0.00016456,2]
[373096739,1752859147223,-465.1315204,0.00016456,2]
[373096740,1752859147260,-460.0,0.00016456,2]
[373096741,1752859147300,-460.0,0.00016456,2]
[373096742,1752859147337,-460.0,0.00016456,2]
[373096743,1752859147367,-460.0,0.00016456,2]
[373096744,1752859147401,-460.0,0.00016456,2]
[373096745,1752859147441,-460.0,0.00016456,2]
[373096746,1752859147473,-460.0,0.00016456,2]
[373096747,1752859147508,-344.05311728,0.00016456,2]
[373096748,1752859147638,-115.94688272,0.00016456,2]
[373096749,1752859147674,-460.0,0.00016456,2]
[373096750,1752859147711,-460.0,0.00016456,2]
[373096751,1752859147744,-460.0,0.00016457,2]
[373096752,1752859147778,-460.0,0.00016457,2]
[373096753,1752859147812,-460.0,0.00016457,2]
[373096754,1752859147846,-460.0,0.00016457,2]
[373096755,1752859147880,-460.0,0.00016457,2]
[373096756,1752859147913,-460.0,0.00016457,2]
[373096757,1752859147948,-460.0,0.00016457,2]
[373096758,1752859147982,-655.37,0.00016457,2]
[373096759,1752859148360,-460.0,0.00016457,2]
[373096760,1752859148389,-460.0,0.00016457,2]
[373096761,1752859148417,-469.61512153,0.00016457,2]
[373096762,1752859148446,-460.0,0.00016457,2]
[373096763,1752859148482,-460.0,0.00016457,2]
[373096764,1752859148519,-460.0,0.00016457,2]
[373096765,1752859148550,-460.0,0.00016457,2]
[373096766,1752859148585,-460.0,0.00016457,2]
[373096767,1752859148616,-460.0,0.00016457,2]
[373096768,1752859148650,-460.0,0.00016457,2]
[373096769,1752859148683,-320.76975694,0.00016457,2]
[373096770,1752859148894,-139.23024306,0.00016457,2]
[373096771,1752859148924,-336.50172962,0.00016457,2]
[373096772,1752859148954,-409.81821519,0.00016457,2]
[373096773,1752859148984,-460.0,0.00016457,2]
[373096774,1752859149014,-460.0,0.00016457,2]
[373096775,1752859149044,-460.0,0.00016457,2]
[373096776,1752859149077,-460.0,0.00016457,2]
[373096777,1752859149106,-476.2675893,0.00016457,2]
[373096778,1752859149136,-460.0,0.00016457,2]
[373096779,1752859149165,-310.55750851,0.00016457,2]
[373096780,1752859149197,-764.77,0.00016457,2]
[373096781,1752859149227,-65.70942864,0.00016458,2]
[373096782,1752859149426,-394.29057136,0.00016458,2]
[373096783,1752859149458,-460.0,0.00016458,2]
[373096784,1752859149489,-1038.58,0.00016458,2]
[373096785,1752859149520,-688.01,0.00016458,2]
[373096786,1752859149550,-1119.33,0.00016458,2]
[373096787,1752859149583,-1114.60885728,0.00016458,2]
[373096788,1752859187245,5000.0,0.000164,2]
[373096789,1752859195013,4214.19609276,0.000164,2]
[373096790,1752859196184,972.320315,0.00015572,2]
[373096791,1752859199618,-460.0,0.00016455,2]
[373096792,1752859199646,-462.73653969,0.00016455,2]
[373096793,1752859199676,-460.0,0.00016455,2]
[373096794,1752859199704,-460.0,0.00016455,2]
[373096795,1752859199734,-460.0,0.00016455,2]
[373096796,1752859199762,-460.0,0.00016455,2]
[373096797,1752859199791,-525.98,0.00016456,2]
[373096798,1752859199821,-472.91,0.00016456,2]
[373096799,1752859199849,-460.0,0.00016457,2]
[373096800,1752859199879,-460.0,0.00016457,2]
[373096801,1752859199908,-176.74692062,0.00016457,2]
[373096802,1752859200037,-283.25307938,0.00016457,2]
[373096803,1752859200068,-460.0,0.00016457,2]
[373096804,1752859200096,-460.0,0.00016457,2]
[373096805,1752859200125,-461.41480439,0.00016457,2]
[373096806,1752859200153,-460.0,0.00016457,2]
[373096807,1752859200181,-460.0,0.00016457,2]
[373096808,1752859200211,-968.68,0.00016457,2]
[373096809,1752859200242,-370.36114272,0.00016458,2]
[373096810,1752859200271,-460.0,0.00016458,2]
[373096811,1752859200300,-498.33,0.00016458,2]
[373096812,1752859200816,150.0,0.00014621,2]
[373096813,1752859200851,-829.25,0.00016458,2]
[373096814,1752859200881,-506.18,0.00016458,2]
[373096815,1752859200911,-500.0,0.00016459,2]
[373096816,1752859200965,150.0,0.00015317,2]
[373096817,1752859202745,300.0,0.00016454,2]
[373096818,1752859203392,5000.0,0.000164,2]
[373096819,1752859205347,460.0,0.00016455,2]
[373096820,1752859213877,419.14,0.00016455,2]
[373096821,1752859213900,40.86,0.00016455,2]
[373096822,1752859217744,460.0,0.00016457,2]
[373096823,1752859218406,460.0,0.00016457,2]
[373096824,1752859218665,5000.0,0.000165,2]
[373096825,1752859218945,460.0,0.00016457,2]
[373096826,1752859220970,460.0,0.00016455,2]
[373096827,1752859222837,460.0,0.00016457,2]
[373096828,1752859223071,851.33,0.00016458,2]
[373096829,1752859227032,460.0,0.00016456,2]
[373096830,1752859230162,460.0,0.00016455,2]
[373096831,1752859230572,460.0,0.00016457,2]
[373096832,1752859236557,427.81,0.000165,2]
[373096833,1752859236579,4572.19,0.000165,2]
[373096834,1752859236854,460.0,0.00016455,2]
[373096835,1752859239362,460.0,0.00016457,2]
[373096836,1752859243500,916.43,0.00016457,2]
[373096837,1752859244358,460.0,0.00016457,2]
[373096838,1752859247217,460.0,0.00016455,2]
[373096839,1752859251763,2671.38,0.000165,2]
[373096840,1752859251788,2328.62,0.000165,2]
[373096841,1752859251817,7671.38,0.00015679,2]
[373096842,1752859251839,2328.62,0.00015679,2]
[373096843,1752859257457,155.0,0.000165,2]
[373096844,1752859257519,461.22608787,0.00016457,2]
[373096845,1752859258803,460.0,0.00016455,2]
[373096846,1752859260607,460.0,0.00016455,2]
[373096847,1752859265303,150.0,0.00014622,2]
[373096848,1752859266770,5000.0,0.000165,2]
[373096849,1752859268287,460.0,0.00016457,2]
[373096850,1752859273029,460.0,0.00016455,2]
[373096851,1752859277284,65.15391213,0.00016455,2]
[373096852,1752859277308,394.84608787,0.00016455,2]
[373096853,1752859280498,460.0,0.00016457,2]
[373096854,1752859283432,5000.0,0.000165,2]
[373096855,1752859284166,460.0,0.00016455,2]
[373096856,1752859290490,460.0,0.00016455,2]
[373096857,1752859292155,2771.47,0.00016458,2]
[373096858,1752859296760,453.68391213,0.00016457,2]
[373096859,1752859296785,6.31608787,0.00016457,2]
[373096860,1752859299631,5000.0,0.000165,2]
[373096861,1752859302510,916.8,0.00016455,2]
[373096862,1752859303029,460.0,0.00016457,2]
[373096863,1752859304231,460.0,0.00016457,2]
[373096864,1752859304342,460.0,0.00016455,2]
[373096865,1752859314818,460.0,0.00016455,2]
[373096866,1752859315298,2236.88391213,0.000165,2]
[373096867,1752859315320,1972.70304333,0.000165,2]
[373096868,1752859318397,460.0,0.00016457,2]
[373096869,1752859322214,460.0,0.00016457,2]
[373096870,1752859324189,460.0,0.00016455,2]
[373096871,1752859327797,527.42,0.00016457,2]
[373096872,1752859331743,5000.0,0.000165,2]
[373096873,1752859336169,1119.87695667,0.00016458,2]
[373096874,1752859347458,5000.0,0.000164,2]
[373096875,1752859391565,5000.0,0.000164,2]
[373096876,1752859393215,150.0,0.00014621,2]
[373096877,1752859401975,169.261698,0.00015961,2]
[373096878,1752859452570,24900.0,0.00015599,2]
[373096880,1752859623978,300.0,0.00016454,2]
[373096882,1752859659149,460.0,0.00016454,2]
[373096886,1752859682452,300.0,0.00016454,2]
[373096889,1752859703154,159.71343054,0.00015961,2]
[373096890,1752859705059,460.0,0.00016454,2]
[373096891,1752859722609,-460.0,0.00016455,2]
[373096892,1752859722639,-460.0,0.00016455,2]
[373096893,1752859722669,-487.77,0.00016455,2]
[373096894,1752859722697,-460.0,0.00016455,2]
[373096895,1752859722728,-460.0,0.00016455,2]
[373096896,1752859722760,-460.0,0.00016455,2]
[373096897,1752859722789,-460.0,0.00016455,2]
[373096898,1752859722819,-463.27370372,0.00016455,2]
[373096899,1752859722848,-460.0,0.00016455,2]
[373096900,1752859722878,-500.0,0.00016455,2]
[373096901,1752859722908,-197.91259256,0.00016455,2]
[373096902,1752859723136,-262.08740744,0.00016455,2]
[373096903,1752859723165,-460.0,0.00016455,2]
[373096904,1752859723193,-460.0,0.00016455,2]
[373096905,1752859723220,-460.0,0.00016455,2]
[373096906,1752859723249,-500.0,0.00016455,2]
[373096907,1752859723276,-460.0,0.00016455,2]
[373096908,1752859723305,-460.0,0.00016455,2]
[373096909,1752859723334,-460.0,0.00016455,2]
[373096910,1752859723362,-460.0,0.00016455,2]
[373096911,1752859723390,-460.0,0.00016455,2]
[373096912,1752859723420,-218.41518512,0.00016455,2]
[373096913,1752859723629,-678.99481488,0.00016455,2]
[373096914,1752859723658,-460.0,0.00016455,2]
[373096915,1752859723687,-460.0,0.00016455,2]
[373096916,1752859723720,-493.81,0.00016455,2]
[373096917,1752859723755,-460.0,0.00016455,2]
[373096918,1752859723785,-460.0,0.00016455,2]
[373096919,1752859723815,-460.0,0.00016455,2]
[373096920,1752859723844,-460.0,0.00016455,2]
[373096921,1752859723872,-460.0,0.00016455,2]
[373096922,1752859723902,-460.0,0.00016455,2]
[373096923,1752859724015,-460.0,0.00016455,2]
[373096924,1752859724044,-460.0,0.00016455,2]
[373096925,1752859724073,-460.0,0.00016455,2]
[373096926,1752859724101,-460.0,0.00016455,2]
[373096927,1752859724130,-460.0,0.00016455,2]
[373096928,1752859724158,-460.0,0.00016455,2]
[373096929,1752859724186,-460.0,0.00016455,2]
[373096930,1752859724215,-524.61,0.00016455,2]
[373096931,1752859724243,-460.0,0.00016455,2]
[373096932,1752859724272,-460.0,0.00016455,2]
[373096933,1752859724300,-210.78,0.00016455,2]
[373096934,1752859724463,-249.22,0.00016455,2]
[373096935,1752859724492,-460.0,0.00016455,2]
[373096936,1752859724521,-460.0,0.00016455,2]
[373096937,1752859724549,-460.0,0.00016455,2]
[373096938,1752859724578,-460.0,0.00016455,2]
[373096939,1752859724607,-460.0,0.00016455,2]
[373096940,1752859724635,-460.0,0.00016455,2]
[373096941,1752859724665,-460.0,0.00016455,2]
[373096942,1752859724693,-460.0,0.00016455,2]
[373096943,1752859724724,-460.0,0.00016455,2]
[373096944,1752859724752,-460.0,0.00016455,2]
[373096945,1752859724889,-460.0,0.00016455,2]
[373096946,1752859724918,-475.80042236,0.00016455,2]
[373096947,1752859724947,-460.0,0.00016455,2]
[373096948,1752859724975,-460.0,0.00016455,2]
[373096949,1752859725006,-704.19,0.00016455,2]
[373096950,1752859725035,-460.0,0.00016455,2]
[373096951,1752859725063,-460.0,0.00016455,2]
[373096952,1752859725092,-460.0,0.00016455,2]
[373096953,1752859725122,-460.0,0.00016455,2]
[373096954,1752859725150,-460.0,0.00016455,2]
[373096955,1752859725284,-460.0,0.00016455,2]
[373096956,1752859725312,-460.0,0.00016455,2]
[373096957,1752859725340,-460.0,0.00016456,2]
[373096958,1752859725367,-460.0,0.00016456,2]
[373096959,1752859725500,-460.0,0.00016456,2]
[373096960,1752859725527,-460.0,0.00016456,2]
[373096961,1752859725555,-460.0,0.00016456,2]
[373096962,1752859725581,-353.62368527,0.00016456,2]
[373096963,1752859725610,-332.23969019,0.00016456,2]
[373096964,1752859725637,-493.03675911,0.00016456,2]
[373096965,1752859725666,-460.0,0.00016457,2]
[373096966,1752859725934,-460.6656135,0.00016457,2]
[373096967,1752859725964,-460.0,0.00016457,2]
[373096968,1752859725993,-460.0,0.00016457,2]
[373096969,1752859726023,-504.7800623,0.00016457,2]
[373096970,1752859726052,-323.71112524,0.00016457,2]
[373096971,1752859726080,-460.0,0.00016457,2]
[373096972,1752859726108,-461.23933759,0.00016457,2]
[373096973,1752859726136,-460.0,0.00016457,2]
[373096974,1752859726164,-460.0,0.00016457,2]
[373096975,1752859726193,-460.0,0.00016457,2]
[373096976,1752859726221,-460.0,0.00016457,2]
[373096977,1752859726375,-460.0,0.00016457,2]
[373096978,1752859726403,-460.0,0.00016457,2]
[373096979,1752859726432,-460.0,0.00016457,2]
[373096980,1752859726462,-758.41,0.00016457,2]
[373096981,1752859726492,-1721.86,0.00016457,2]
[373096982,1752859726672,-2279.46,0.00016457,2]
[373096983,1752859726701,-460.0,0.00016457,2]
[373096984,1752859726733,-460.0,0.00016457,2]
[373096985,1752859726762,-460.0,0.00016457,2]
[373096986,1752859726791,-460.0,0.00016457,2]
[373096987,1752859726833,-460.0,0.00016457,2]
[373096988,1752859726864,-381.08,0.00016457,2]
[373096989,1752859748657,460.0,0.00016454,2]
[373096990,1752859764736,5000.0,0.00016454,2]
[373096991,1752859773533,460.0,0.00016454,2]
[373096992,1752859776131,460.0,0.00016454,2]
[373096993,1752859780381,150.0,0.00014609,2]
[373096994,1752859781253,150.0,0.00015305,2]
[373096995,1752859781645,150.0,0.00016,2]
[373096996,1752859782214,5000.0,0.00016454,2]
[373096997,1752859786849,460.0,0.00016454,2]
[373096998,1752859790206,182.03351193,0.00016454,2]
[373096999,1752859800345,5000.0,0.00016454,2]
[373097000,1752859802800,300.0,0.00016454,2]
[373097001,1752859804684,1015.39,0.00016454,2]
[373097002,1752859816484,5000.0,0.00016454,2]
[373097025,1752859832263,-460.0,0.00016455,2]
[373097026,1752859832272,-429.16917586,0.00016455,2]
[373097027,1752859832317,-30.83082414,0.00016455,2]
[373097029,1752859832326,-460.0,0.00016455,2]
[373097031,1752859832336,-460.0,0.00016455,2]
[373097033,1752859832345,-374.44562516,0.00016455,2]
[373097051,1752859835185,5000.0,0.00016454,2]
[373097063,1752859838200,-85.55437484,0.00016455,2]
[373097065,1752859838211,-460.0,0.00016455,2]
[373097066,1752859838220,-460.0,0.00016455,2]
[373097083,1752859838370,-471.86389211,0.00016455,2]
[373097085,1752859838380,-460.0,0.00016455,2]
[373097087,1752859838389,-460.0,0.00016455,2]
[373097089,1752859838398,-340.42117941,0.00016455,2]
[373097091,1752859838407,-460.0,0.00016455,2]
[373097093,1752859838417,-764.37,0.00016455,2]
[373097095,1752859838427,-464.86458566,0.00016455,2]
[373097097,1752859838436,-460.0,0.00016455,2]
[373097099,1752859838445,-460.0,0.00016455,2]
[373097101,1752859838455,-460.0,0.00016455,2]
[373097103,1752859838464,-460.0,0.00016455,2]
[373097105,1752859838474,-462.99797256,0.00016455,2]
[373097107,1752859838483,-460.0,0.00016456,2]
[373097109,1752859838493,-460.0,0.00016456,2]
[373097111,1752859838502,-460.0,0.00016456,2]
[373097113,1752859838512,-177.48005639,0.00016456,2]
[373097115,1752859838522,-78.92,0.00016457,2]
[373097117,1752859838531,-460.0,0.00016457,2]
[373097119,1752859838540,-460.0,0.00016457,2]
[373097121,1752859838549,-460.0,0.00016457,2]
[373097123,1752859838558,-460.0,0.00016457,2]
[373097125,1752859838568,-460.0,0.00016457,2]
[373097127,1752859838578,-460.0,0.00016457,2]
[373097129,1752859838590,-460.0,0.00016457,2]
[373097131,1752859838599,-460.0,0.00016457,2]
[373097133,1752859838608,-460.0,0.00016457,2]
[373097135,1752859838617,-460.0,0.00016457,2]
[373097137,1752859838626,-460.0,0.00016457,2]
[373097139,1752859838635,-460.0,0.00016457,2]
[373097141,1752859838644,-460.0,0.00016457,2]